bitfinex/quotes_SOLUSD_20240716
["timestamp","ask_amount","ask_price","bid_price","bid_amount"]
[1721118153829,6.4986,153.88,153.82,45.0]
[1721118154024,6.4981,153.89,153.81,6.5013]
[1721118154225,6.4986,153.88,153.82,45.0]
[1721118154414,6.4981,153.89,153.81,6.5015]
[1721118154618,7.334,153.9,153.82,51.5009]
[1721118154946,7.334,153.9,153.83,37.6995]
[1721118154947,0.8363,153.9,153.83,37.6995]
[1721118155161,0.8363,153.9,153.85,6.4998]
[1721118155446,0.8363,153.9,153.86,16.2484]
[1721118155744,0.8363,153.9,153.87,45.0]
[1721118156248,0.8363,153.9,153.83,21.4483]
[1721118156454,6.499,153.87,153.83,21.4483]
[1721118156747,0.8363,153.9,153.83,21.4483]
[1721118156955,6.4985,153.89,153.83,21.4483]
[1721118157146,6.4989,153.87,153.83,21.4483]
[1721118157444,17.0807,153.9,153.83,21.4483]
[1721118157960,6.4985,153.89,153.83,21.4483]
[1721118158255,6.4986,153.88,153.83,21.4483]
[1721118158421,0.8363,153.9,153.83,21.4483]
[1721118158971,0.8363,153.9,153.75,52.0087]
[1721118158972,26.2456,153.89,153.75,6.6473]
[1721118159250,16.2486,153.86,153.75,6.6473]
[1721118159445,20.0,153.88,153.75,22.9064]
[1721118159618,6.5007,153.83,153.76,6.5035]
[1721118159819,20.0,153.88,153.76,6.5035]
[1721118160040,6.5006,153.84,153.76,6.5035]
[1721118160245,20.0,153.89,153.75,22.9064]
[1721118160415,6.4999,153.85,153.78,6.5027]
[1721118160622,16.2475,153.87,153.75,22.9064]
[1721118160842,6.5011,153.82,153.75,29.4104]
[1721118161147,6.5007,153.83,153.75,29.4104]
[1721118161444,6.5007,153.83,153.76,6.5036]
[1721118161646,6.5007,153.83,153.75,22.9064]
[1721118161647,20.0,153.89,153.75,6.6473]
[1721118161852,6.4993,153.87,153.79,6.5021]
[1721118162032,20.8363,153.9,153.8,45.0]
[1721118162362,6.4994,153.86,153.8,45.0]
[1721118162733,6.4999,153.85,153.79,45.0]
[1721118162938,20.8363,153.9,153.79,45.0]
[1721118163242,6.4991,153.87,153.8,6.5017]
[1721118163444,6.4991,153.87,153.81,45.0]
[1721118163957,0.8363,153.9,153.81,6.5013]
[1721118164114,6.4981,153.89,153.83,6.6514]
[1721118164318,0.8363,153.9,153.83,6.6514]
[1721118164615,6.4995,153.86,153.83,6.6514]
[1721118164933,6.4988,153.88,153.83,6.6514]
[1721118165249,7.3344,153.9,153.84,1.2998359]
[1721118165422,7.3344,153.9,153.84,45.0]
[1721118165627,6.4982,153.89,153.84,45.0]
[1721118165945,0.8363,153.9,153.84,61.2505]
[1721118166520,0.8363,153.9,153.84,67.7505]
[1721118166720,0.8363,153.9,153.85,6.4998]
[1721118166959,0.8363,153.9,153.86,45.0]
[1721118167444,0.8363,153.9,153.85,45.0]
[1721118167639,7.334,153.9,153.85,45.0]
[1721118167856,0.8363,153.9,153.85,45.0]
[1721118168344,0.8363,153.9,153.83,6.6514]
[1721118168547,0.8363,153.9,153.84,45.0]
[1721118168756,6.4982,153.89,153.83,6.6514]
[1721118168920,0.8363,153.9,153.84,45.0]
[1721118169553,6.4992,153.87,153.83,6.6514]
[1721118169943,6.4994,153.86,153.83,6.6514]
[1721118170130,6.499,153.87,153.83,6.6514]
[1721118170555,6.4986,153.88,153.83,6.6514]
[1721118170726,0.8363,153.9,153.83,6.6514]
[1721118171047,6.4986,153.88,153.83,6.6514]
[1721118171237,6.4986,153.88,153.84,0.4437008]
[1721118171558,0.8363,153.9,153.83,6.6514]
[1721118171739,6.4994,153.86,153.83,6.6514]
[1721118172226,6.4989,153.88,153.83,6.6514]
[1721118172423,7.3343,153.9,153.83,6.6514]
[1721118172862,6.4983,153.89,153.83,6.6514]
[1721118173049,6.4994,153.86,153.83,6.6514]
[1721118173559,6.499,153.87,153.83,6.6514]
[1721118173851,6.4989,153.88,153.83,6.6514]
[1721118174031,6.4992,153.87,153.83,6.6514]
[1721118174231,6.4995,153.86,153.83,6.6514]
[1721118174428,6.499,153.87,153.83,6.6514]
[1721118174657,0.8363,153.9,153.83,6.6514]
[1721118175034,6.4989,153.88,153.83,6.6514]
[1721118175665,16.2467,153.88,153.79,6.24]
[1721118175823,6.5003,153.84,153.79,6.24]
[1721118176233,6.5008,153.83,153.79,6.24]
[1721118176749,6.5019,153.81,153.79,6.24]
[1721118176953,6.5011,153.82,153.79,6.24]
[1721118177871,60.1495,153.86,153.74,16.226]
[1721118178176,6.5029,153.78,153.74,22.2635]
[1721118178332,6.5023,153.8,153.74,22.2635]
[1721118178534,6.5025,153.79,153.74,22.2635]
[1721118178735,0.8363,153.9,153.78,6.5023]
[1721118178951,0.8363,153.9,153.76,22.7621]
[1721118178952,6.5006,153.84,153.76,22.7621]
[1721118179138,43.9,153.89,153.76,16.2585]
[1721118179456,6.4999,153.85,153.78,6.5027]
[1721118179640,36.2472,153.88,153.76,16.2585]
[1721118179958,6.501,153.83,153.76,22.7621]
[1721118180160,6.501,153.83,153.77,45.0]
[1721118180461,6.5003,153.84,153.77,51.5031]
[1721118180637,46.2472,153.88,153.77,45.0]
[1721118180832,46.2472,153.88,153.74,22.2635]
[1721118180833,36.2472,153.88,153.74,22.2635]
[1721118181034,36.2472,153.88,153.79,6.5021]
[1721118181035,6.4995,153.86,153.79,6.5021]
[1721118181576,6.4995,153.86,153.8,45.0]
[1721118181863,6.4995,153.86,153.74,22.2635]
[1721118181864,20.0,153.88,153.78,16.2565]
[1721118182034,0.8363,153.9,153.8,6.1966]
[1721118182234,0.8363,153.9,153.81,45.0]
[1721118182543,0.8363,153.9,153.82,16.4164]
[1721118182865,6.4985,153.89,153.82,16.4164]
[1721118183049,7.334,153.9,153.83,52.80025224]
[1721118183236,0.8363,153.9,153.83,61.2507]
[1721118183637,0.8363,153.9,153.84,6.5002]
[1721118183842,0.8363,153.9,153.85,45.0]
[1721118184045,0.8363,153.9,153.85,51.4998]
[1721118184248,0.8363,153.9,153.85,45.0]
[1721118184452,0.8363,153.9,153.84,45.0]
[1721118184764,0.8363,153.9,153.84,51.5]
[1721118184958,0.8363,153.9,153.85,6.4996]
[1721118185159,0.8363,153.9,153.86,45.0]
[1721118185361,7.334,153.9,153.86,45.0]
[1721118186169,0.8363,153.9,153.89,13.0536]
[1721118186476,0.8363,153.9,153.89,58.0536]
[1721118186941,6.4947,153.98,153.89,59.22279479]
[1721118187147,0.74885,154.0,153.93,6.496]
[1721118187359,7.24235,154.0,153.94,1.29866238]
[1721118187543,6.4939,153.99,153.95,0.93351814]
[1721118187743,0.74885,154.0,153.96,0.93350501]
[1721118188054,0.74885,154.0,153.94,45.0]
[1721118188771,0.74885,154.0,153.94,51.4956]
[1721118189076,0.74885,154.0,153.95,12.679]
[1721118189299,0.8363192,154.06,153.99,23.0049]
[1721118189586,0.8363192,154.06,154.0,45.62771159]
[1721118189767,0.8363192,154.06,154.01,1.29498859]
[1721118189949,0.8363192,154.06,154.0,45.0]
[1721118189950,0.8363192,154.06,154.03,6.1835]
[1721118190149,0.8363192,154.06,154.04,46.29567597]
[1721118190359,0.8363192,154.06,154.05,1.29559186]
[1721118190957,0.8363192,154.06,154.04,45.0]
[1721118191287,0.8363192,154.06,154.05,7.78774232]
[1721118191574,0.8363192,154.06,154.05,45.0]
[1721118191974,0.8363192,154.06,154.05,6.4913]
[1721118192180,0.8363192,154.06,154.05,52.08932105]
[1721118192360,0.8363192,154.06,154.05,45.0]
[1721118192570,0.8363192,154.06,154.04,45.0]
[1721118192783,0.8363192,154.06,154.03,6.1835]
[1721118192958,0.8363192,154.06,154.04,1.29491781]
[1721118193164,0.8363192,154.06,154.03,6.1835]
[1721118193365,0.8363192,154.06,154.04,1.29585865]
[1721118193567,0.8363192,154.06,154.05,1.29766723]
[1721118193958,0.8363192,154.06,154.04,6.4915]
[1721118194166,0.8363192,154.06,154.05,6.4913]
[1721118194367,0.8363192,154.06,154.05,51.4913]
[1721118194577,0.8363192,154.06,154.05,52.78627291]
[1721118194775,6.4884,154.12,154.05,45.0]
[1721118194975,43.9,154.18,154.08,6.4901]
[1721118195169,6.4873,154.15,154.09,45.0]
[1721118195479,6.4865,154.17,154.09,6.4895]
[1721118195682,6.4868,154.16,154.1,45.0]
[1721118195871,6.4872,154.15,154.1,45.0]
[1721118196057,6.4876,154.14,154.09,45.0]
[1721118196456,6.4891,154.11,154.04,16.2288]
[1721118196655,16.2169,154.16,154.04,16.2288]
[1721118196656,43.9,154.15,154.04,16.2288]
[1721118196960,43.9,154.15,154.03,6.1835]
[1721118196961,6.4894,154.1,154.03,6.1835]
[1721118197176,6.4888,154.11,154.03,12.6757]
[1721118197469,6.4884,154.12,154.05,6.4913]
[1721118197668,43.9,154.15,154.03,6.1835]
[1721118197869,6.4901,154.09,154.03,6.1835]
[1721118198085,43.9,154.12,154.03,6.1835]
[1721118198264,20.0,154.11,154.03,6.1835]
[1721118198458,43.9,154.12,154.03,6.1835]
[1721118198662,6.4889,154.11,154.04,6.4918]
[1721118198879,6.4884,154.13,154.05,6.4911]
[1721118199069,26.4885,154.12,154.04,16.2292]
[1721118199270,20.0,154.12,154.04,16.2292]
[1721118199478,6.4884,154.12,154.05,6.4913]
[1721118199759,6.4884,154.12,154.04,16.2292]
[1721118199977,6.4884,154.12,154.05,45.0]
[1721118200282,16.2156,154.18,154.07,16.2262]
[1721118200283,43.9,154.18,154.07,16.2262]
[1721118200461,6.4873,154.15,154.08,45.0]
[1721118200657,43.9,154.18,154.08,51.4897]
[1721118200875,43.9,154.18,154.09,6.4896]
[1721118201190,6.4867,154.17,154.1,45.0]
[1721118201375,50.3862,154.18,154.1,51.4888]
[1721118201579,6.4864,154.17,154.1,45.0]
[1721118201763,6.4862,154.18,154.1,51.489]
[1721118202288,43.9,154.2,154.1,45.0]
[1721118202289,6.4865,154.17,154.1,45.0]
[1721118202486,6.4865,154.17,154.1,51.4892]
[1721118203063,6.4858,154.19,154.11,6.4884]
[1721118203366,0.8363192,154.21,154.12,58.0001]
[1721118203571,0.8363192,154.21,154.13,61.69187881]
[1721118203795,0.8363192,154.21,154.14,0.95142385]
[1721118203996,7.3213192,154.21,154.15,1.06435942]
[1721118204169,0.8363192,154.21,154.15,1.06435942]
[1721118204796,0.8363192,154.21,154.12,6.512]
[1721118204964,6.4876,154.14,154.12,6.512]
[1721118205288,0.8363192,154.21,154.08,6.512]
[1721118205289,43.9,154.16,154.08,6.512]
[1721118205465,6.4892,154.11,154.08,6.512]
[1721118206061,43.9,154.16,154.08,6.512]
[1721118206389,20.0,154.15,154.08,6.512]
[1721118207986,20.0,154.15,154.02,6.1291]
[1721118207987,43.9,154.13,154.02,6.1291]
[1721118208172,16.2223,154.11,154.02,6.1291]
[1721118208485,20.0,154.1,154.02,6.1291]
[1721118209072,6.4918,154.04,154.02,6.1291]
[1721118209276,20.0,154.1,154.02,6.1291]
[1721118209885,6.4914,154.05,154.02,6.1291]
[1721118210089,6.4924,154.03,153.97,21.5701]
[1721118210587,16.2258,154.08,153.97,21.5701]
[1721118210790,6.4923,154.03,153.97,21.5701]
[1721118210966,6.4913,154.06,153.98,6.4942]
[1721118211166,63.9,154.1,153.97,21.5701]
[1721118211167,6.4918,154.04,153.97,21.5701]
[1721118211362,6.491,154.06,153.97,21.5701]
[1721118211577,6.491,154.06,153.99,6.4938]
[1721118211773,6.491,154.06,153.98,6.4943]
[1721118211973,6.4903,154.08,154.0,6.4934]
[1721118212273,6.491,154.06,153.99,6.4939]
[1721118212581,6.4909,154.06,153.99,6.4939]
[1721118212780,6.4909,154.06,154.0,45.0]
[1721118212975,6.4904,154.08,154.0,45.0]
[1721118213185,20.0,154.07,154.0,45.0]
[1721118213376,6.4898,154.09,154.02,16.2313]
[1721118213589,7.72847586,154.17,154.03,45.0]
[1721118213879,6.4884,154.13,154.06,21.7712]
[1721118214185,9.37770786,154.18,154.07,45.0]
[1721118214186,6.4875,154.15,154.07,45.0]
[1721118214390,6.4871,154.15,154.07,51.4905]
[1721118214581,6.4876,154.14,154.07,51.4905]
[1721118214777,60.1149,154.18,154.08,1.29546619]
[1721118215101,6.4875,154.15,154.07,51.4905]
[1721118215415,43.9,154.18,154.08,16.2247]
[1721118215704,6.4868,154.16,154.09,45.0]
[1721118215871,50.3862,154.18,154.09,51.4897]
[1721118216075,6.4854,154.2,154.09,45.0]
[1721118216303,44.7363192,154.21,154.09,45.0]
[1721118216606,44.7363192,154.21,154.1,1.29731509]
[1721118216784,6.4859,154.18,154.11,1.29726611]
[1721118216986,6.4855,154.19,154.09,45.0]
[1721118217371,6.486,154.18,154.09,45.0]
[1721118217571,0.8363192,154.21,154.11,6.4888]
[1721118217877,0.8363192,154.21,154.12,45.0]
[1721118218080,7.3212192,154.21,154.13,13.0328]
[1721118218301,7.3212192,154.21,154.14,45.0]
[1721118218590,0.8363192,154.21,154.14,45.0]
[1721118218805,7.3213192,154.21,154.14,45.0]
[1721118219010,0.8363192,154.21,154.14,45.0]
[1721118219186,6.4855,154.19,154.14,45.0]
[1721118219568,0.8363192,154.21,154.14,45.0]
[1721118220096,6.4851,154.2,154.14,45.0]
[1721118220404,6.4861,154.18,154.14,45.0]
[1721118220598,6.4864,154.17,154.13,6.545]
[1721118220808,6.486,154.18,154.13,6.545]
[1721118221102,6.4858,154.19,154.13,6.545]
[1721118221271,0.8363192,154.21,154.13,6.545]
[1721118221477,6.4854,154.2,154.14,45.0]
[1721118221889,0.8363192,154.21,154.14,45.0]
[1721118222887,54.7363192,154.21,154.09,6.5335]
[1721118223088,20.0,154.2,154.09,6.5335]
[1721118223281,6.4871,154.16,154.09,6.5335]
[1721118223481,6.4872,154.15,154.09,6.5335]
[1721118223682,6.4879,154.14,154.09,6.5335]
[1721118224074,43.9,154.18,154.09,6.5335]
[1721118224277,6.4892,154.1,154.09,6.5335]
[1721118224502,43.9,154.15,154.09,6.5335]
[1721118225075,20.0,154.14,154.05,6.1129]
[1721118225309,6.4897,154.1,154.05,6.1129]
[1721118225674,6.4901,154.08,154.05,6.1129]
[1721118226010,6.4905,154.07,154.05,6.1129]
[1721118226690,6.49,154.09,154.05,6.1129]
[1721118226891,43.9,154.12,154.05,6.1129]
[1721118227125,6.4897,154.09,154.05,6.1129]
[1721118227493,6.4897,154.09,154.01,21.5759]
[1721118227494,20.0,154.08,154.01,21.5759]
[1721118227693,20.0,154.08,153.97,6.2751]
[1721118227694,60.1276,154.06,153.97,6.2751]
[1721118227912,43.9,154.06,153.97,6.2751]
[1721118228121,20.0,154.05,153.97,6.2751]
[1721118228330,6.4926,154.02,153.97,6.2751]
[1721118228789,6.4922,154.04,153.97,6.2751]
[1721118229316,6.4926,154.02,153.97,6.2751]
[1721118229623,6.4921,154.04,153.97,6.2751]
[1721118229919,6.4928,154.02,153.97,6.2751]
[1721118231012,6.4931,154.01,153.97,6.2751]
[1721118231202,6.4925,154.03,153.97,6.2751]
[1721118231408,20.0,154.05,153.97,6.2751]
[1721118231805,6.4926,154.02,153.97,6.2751]
[1721118232125,6.4922,154.03,153.97,6.2751]
[1721118232301,6.4922,154.04,153.98,45.0]
[1721118232503,6.4923,154.03,153.97,6.2751]
[1721118232728,6.4918,154.04,153.97,6.2751]
[1721118233095,20.0,154.05,153.98,45.0]
[1721118233326,20.0,154.08,153.98,61.2358]
[1721118233531,20.0,154.08,153.98,45.0]
[1721118233694,6.4917,154.05,153.98,45.0]
[1721118233901,6.4919,154.04,153.98,45.0]
[1721118234403,60.1245,154.09,153.98,45.0]
[1721118234603,60.1245,154.09,153.97,6.2751]
[1721118234822,6.4915,154.05,153.98,45.0]
[1721118235031,6.4914,154.05,153.98,45.0]
[1721118235539,6.492,154.04,153.98,45.0]
[1721118235830,60.1245,154.09,153.98,45.0]
[1721118236007,20.0,154.08,153.98,45.0]
[1721118236210,6.4918,154.04,153.98,45.0]
[1721118236931,20.0,154.08,153.98,45.0]
[1721118237117,6.4926,154.03,153.98,45.0]
[1721118237314,6.4918,154.04,153.98,45.0]
[1721118237517,6.4918,154.04,153.98,46.29848587]
[1721118237818,6.4911,154.06,153.98,62.53428587]
[1721118238006,6.4914,154.05,153.98,61.2358]
[1721118238210,6.4908,154.07,153.98,61.2358]
[1721118238532,26.491,154.06,153.98,67.7299]
[1721118239606,6.4904,154.08,153.98,61.2358]
[1721118239804,6.4904,154.08,154.0,6.4934]
[1721118240028,6.4904,154.08,154.01,51.4928]
[1721118240336,43.9,154.09,154.0,16.2327]
[1721118240517,43.9,154.09,154.01,45.0]
[1721118240518,6.4909,154.06,154.01,45.0]
[1721118240718,6.4914,154.05,154.01,45.0]
[1721118241021,43.9,154.09,154.01,45.0]
[1721118241220,43.9,154.09,154.0,45.0]
[1721118241438,43.9,154.09,153.97,6.2751]
[1721118241627,20.0,154.08,153.97,6.2751]
[1721118242227,6.4915,154.05,153.97,12.7698]
[1721118242546,6.4919,154.04,153.97,12.7698]
[1721118242741,6.4919,154.04,153.98,45.0]
[1721118243139,20.0,154.08,153.98,45.0]
[1721118243444,60.1276,154.06,153.97,6.2751]
[1721118243645,6.4935,154.0,153.97,6.2751]
[1721118244554,43.9,154.01,153.93,1.2988178]
[1721118244724,43.9,154.01,153.93,17.5399178]
[1721118244927,6.4938,154.0,153.93,17.5399178]
[1721118245128,43.9,154.01,153.93,17.5399178]
[1721118245129,43.9,154.01,153.93,1.2988178]
[1721118245537,6.4939,153.99,153.93,1.2988178]
[1721118245742,6.4944,153.98,153.93,1.2988178]
[1721118245951,43.9,154.01,153.93,1.2988178]
[1721118246249,43.9,154.01,153.94,16.2398]
[1721118246454,43.9,154.01,153.95,1.29882944]
[1721118246831,6.4929,154.02,153.94,6.4959]
[1721118247135,6.4929,154.02,153.93,16.2402]
[1721118247136,43.9,154.04,153.95,45.0]
[1721118247339,43.9,154.04,153.93,16.2402]
[1721118247340,6.4935,154.0,153.94,45.0]
[1721118247849,6.4939,153.99,153.94,45.0]
[1721118248033,6.4934,154.01,153.93,51.4963]
[1721118248350,6.5732,154.09,153.93,45.0]
[1721118248524,43.9,154.07,153.98,6.4939]
[1721118248724,6.491,154.06,153.99,45.0]
[1721118249025,43.9,154.07,154.0,6.2826]
[1721118249255,50.3906,154.07,154.01,45.0]
[1721118250358,43.9,154.07,154.01,45.0]
[1721118250546,43.9,154.07,154.01,51.493]
[1721118250728,6.4901,154.09,154.02,6.4926]
[1721118251051,43.9,154.1,154.03,45.0]
[1721118251357,43.9,154.13,154.03,51.4921]
[1721118251647,43.9,154.13,154.03,45.0]
[1721118252026,6.4901,154.08,154.03,45.0]
[1721118252220,20.0,154.12,154.03,45.0]
[1721118252221,6.4909,154.07,154.03,45.0]
[1721118252626,20.0,154.12,154.03,45.0]
[1721118252823,6.4896,154.1,154.03,45.0]
[1721118253033,6.4897,154.09,154.03,45.0]
[1721118253254,16.2225,154.11,154.0,6.2826]
[1721118253465,43.9,154.1,154.0,6.2826]
[1721118254036,6.4911,154.06,154.01,0.35557946]
[1721118254239,6.4918,154.04,154.0,6.2826]
[1721118254443,43.9,154.07,154.0,6.2826]
[1721118254934,6.4928,154.02,154.0,6.2826]
[1721118255527,20.0,154.06,154.0,6.2826]
[1721118255748,20.0,154.06,153.95,1.29084458]
[1721118255749,43.9,154.01,153.95,1.29084458]
[1721118255950,6.4941,153.99,153.91,7.78838006]
[1721118256471,43.9,154.01,153.9,16.2434]
[1721118256678,6.4932,154.01,153.92,16.2412]
[1721118256969,6.4926,154.02,153.92,16.2412]
[1721118257291,6.4921,154.04,153.96,6.4951]
[1721118257445,6.4923,154.03,153.97,45.0]
[1721118257640,28.38404051,154.06,153.94,16.2391]
[1721118258174,6.4938,154.0,153.95,45.0]
[1721118258340,16.2299,154.04,153.95,45.0]
[1721118258543,6.493,154.02,153.95,45.0]
[1721118258875,6.4931,154.01,153.95,45.0]
[1721118259068,20.0,154.03,153.94,46.0749934]
[1721118259366,6.4935,154.0,153.94,46.0749934]
[1721118259557,6.494,153.99,153.94,1.0749934]
[1721118260166,6.4951,153.96,153.95,1.07492357]
[1721118260345,63.9,153.96,153.89,6.2254]
[1721118260546,63.9,153.96,153.73,422.7238]
[1721118260547,6.4981,153.89,153.85,6.661]
[1721118260749,6.4986,153.88,153.85,6.661]
[1721118260946,6.4994,153.86,153.85,6.661]
[1721118261350,43.9,153.88,153.81,6.2561]
[1721118262060,6.4999,153.85,153.81,6.2561]
[1721118262476,43.9,153.88,153.81,6.2561]
[1721118262856,40.63678697,153.94,153.81,6.2561]
[1721118263165,43.9,153.91,153.81,6.2561]
[1721118263469,6.4998,153.86,153.81,6.2561]
[1721118263674,6.499,153.87,153.81,6.2561]
[1721118264052,6.4985,153.89,153.81,6.2561]
[1721118264253,20.0,153.9,153.81,6.2561]
[1721118264254,6.4985,153.88,153.81,6.2561]
[1721118264482,20.0,153.9,153.81,6.2561]
[1721118264652,6.4993,153.87,153.81,6.2561]
[1721118264854,43.9,153.88,153.81,6.2561]
[1721118265062,20.0,153.9,153.81,6.2561]
[1721118265267,6.5002,153.84,153.81,6.2561]
[1721118265779,6.5007,153.83,153.81,6.2561]
[1721118265985,6.5002,153.84,153.77,23.0472]
[1721118266684,50.3998,153.85,153.77,23.0472]
[1721118266871,6.4994,153.86,153.78,6.5026]
[1721118267057,6.4998,153.85,153.78,6.5026]
[1721118267256,6.4998,153.85,153.77,45.8082]
[1721118267473,20.0,153.9,153.79,6.5019]
[1721118267660,6.5002,153.85,153.77,45.8082]
[1721118267856,43.9,153.88,153.77,23.0472]
[1721118268071,20.0,153.87,153.77,23.0472]
[1721118268263,6.5016,153.81,153.77,23.0472]
[1721118268461,6.5011,153.82,153.77,23.0472]
[1721118268660,6.5021,153.8,153.77,23.0472]
[1721118268886,43.9,153.85,153.77,23.0472]
[1721118269063,20.0,153.84,153.77,23.0472]
[1721118269587,26.75605586,153.84,153.77,23.0472]
[1721118269988,6.5015,153.81,153.77,23.0472]
[1721118270153,6.5016,153.81,153.77,23.0472]
[1721118270873,6.5019,153.8,153.77,23.0472]
[1721118271076,6.75605586,153.84,153.77,23.0472]
[1721118271277,43.9,153.85,153.77,23.0472]
[1721118271585,6.501,153.83,153.77,23.0472]
[1721118271954,43.9,153.85,153.77,23.0472]
[1721118271955,6.5001,153.85,153.77,23.0472]
[1721118272155,6.5001,153.85,153.78,6.5027]
[1721118272371,6.75448493,153.88,153.79,17.55589447]
[1721118272592,60.1442,153.91,153.77,23.0472]
[1721118272765,6.5001,153.85,153.77,29.55]
[1721118273589,6.7544493,153.88,153.78,16.2567]
[1721118273887,6.499,153.87,153.78,22.7591]
[1721118274063,6.4995,153.86,153.78,22.7591]
[1721118274486,6.4998,153.85,153.78,22.7591]
[1721118274686,6.4994,153.86,153.78,22.7591]
[1721118275167,6.499,153.87,153.79,7.80202592]
[1721118275489,6.499,153.87,153.79,6.5021]
[1721118275691,66.89823033,153.91,153.8,6.5019]
[1721118275877,20.0,153.9,153.8,6.5019]
[1721118276063,6.75403033,153.91,153.81,22.7548]
[1721118276262,6.4977,153.9,153.81,16.2534]
[1721118276489,6.4977,153.9,153.82,6.501]
[1721118276788,6.499,153.87,153.79,12.7419]
[1721118276957,6.499,153.87,153.79,12.7422]
[1721118277487,43.9,153.91,153.79,6.2399]
[1721118277861,16.2452,153.9,153.79,6.2399]
[1721118278067,43.9,153.88,153.79,6.2399]
[1721118278288,6.5009,153.83,153.79,6.2399]
[1721118278590,6.5011,153.82,153.79,6.2399]
[1721118279483,20.0,153.87,153.79,6.2399]
[1721118279858,6.5006,153.84,153.79,6.2399]
[1721118280188,6.5008,153.83,153.79,6.2399]
[1721118280689,6.5017,153.81,153.79,6.2399]
[1721118280870,16.2493,153.86,153.79,6.2399]
[1721118281073,6.5007,153.83,153.79,6.2399]
[1721118282466,20.0,153.87,153.79,6.2399]
[1721118282467,6.5015,153.81,153.79,6.2399]
[1721118282778,6.501,153.83,153.79,6.2399]
[1721118283084,6.4998,153.85,153.79,6.2399]
[1721118283270,36.2476,153.87,153.79,6.2399]
[1721118283761,36.2476,153.87,153.8,1.30027129]
[1721118284100,36.2476,153.87,153.79,7.54012663]
[1721118284393,6.4999,153.85,153.79,6.2399]
[1721118285177,6.5003,153.84,153.79,6.2399]
[1721118285389,6.4997,153.86,153.79,6.2399]
[1721118285562,20.0,153.87,153.79,6.2399]
[1721118285765,6.4998,153.85,153.79,6.2399]
[1721118286788,22.99505395,153.9,153.79,6.2399]
[1721118286975,6.4998,153.85,153.79,6.2399]
[1721118287314,6.5002,153.84,153.79,6.2399]
[1721118287595,6.5008,153.83,153.79,6.2399]
[1721118288098,16.2473,153.88,153.79,6.2399]
[1721118288282,39.04,153.86,153.79,6.2399]
[1721118288674,6.5016,153.81,153.79,6.2399]
[1721118288896,55.2893,153.86,153.79,6.2399]
[1721118288897,20.0,153.85,153.79,6.2399]
[1721118289187,6.5007,153.83,153.79,6.2399]
[1721118289582,6.5011,153.82,153.79,6.2399]
[1721118290103,6.5015,153.81,153.79,6.2399]
[1721118290596,6.75065395,153.9,153.8,16.2547]
[1721118290803,6.75065395,153.9,153.79,12.7418]
[1721118291101,39.04,153.9,153.79,22.4957]
[1721118291280,6.74928437,153.92,153.82,16.2525]
[1721118291481,6.74928437,153.92,153.79,6.2399]
[1721118291482,45.78928437,153.92,153.79,6.2399]
[1721118291793,6.499,153.87,153.79,6.2399]
[1721118291972,16.2448,153.9,153.79,6.2399]
[1721118292173,39.04,153.89,153.79,6.2399]
[1721118292472,6.5003,153.84,153.79,6.2399]
[1721118292671,6.4998,153.86,153.79,6.2399]